[Event "XXII Obert Internacional d'Escacs Sant Marti 2022"]
[Site "Barcelona, Spain"]
[Date "2022.07.16"]
[Round "4.2"]
[White "Narciso Dublan, Marc"]
[Black "Pena Gomez, Manuel"]
[Result "0-1"]
[TimeControl "1.30 fb 30"]
[WhiteElo "2461"]
[BlackElo "2492"]

1. e4 {[%clk 01:30:54]} {[%emt 00:00:05]} c5 {[%clk 01:29:20]} {[%emt
00:01:41]} 2. Nc3 {[%clk 01:31:10]} {[%emt 00:00:14]} Nc6 {[%clk 01:29:15]}
{[%emt 00:00:37]} 3. Bb5 {[%clk 01:31:22]} {[%emt 00:00:17]} Nd4 {[%clk
01:28:47]} {[%emt 00:00:58]} 4. Nf3 {[%clk 01:31:42]} {[%emt 00:00:10]} e6
{[%clk 01:29:14]} {[%emt 00:00:03]} 5. O-O {[%clk 01:31:48]} {[%emt 00:00:23]}
a6 {[%clk 01:29:42]} {[%emt 00:00:04]} 6. Bd3 {[%clk 01:32:02]} {[%emt
00:00:15]} Nc6 {[%clk 01:30:06]} {[%emt 00:00:06]} 7. Nd5 {[%clk 01:28:28]}
{[%emt 00:04:04]} d6 {[%clk 01:26:13]} {[%emt 00:04:23]} 8. Ne3 {[%clk
01:28:39]} {[%emt 00:00:18]} Nf6 {[%clk 01:21:04]} {[%emt 00:05:40]} 9. c3
{[%clk 01:28:00]} {[%emt 00:01:08]} d5 {[%clk 01:09:52]} {[%emt 00:11:42]} 10.
exd5 {[%clk 01:27:03]} {[%emt 00:01:27]} Nxd5 {[%clk 01:10:10]} {[%emt
00:00:12]} 11. Nxd5 {[%clk 01:24:51]} {[%emt 00:02:42]} Qxd5 {[%clk 01:10:25]}
{[%emt 00:00:16]} 12. Qe2 {[%clk 01:20:21]} {[%emt 00:04:59]} Bd7 {[%clk
01:09:55]} {[%emt 00:01:02]} 13. a3 {[%clk 01:14:05]} {[%emt 00:06:45]} Bd6
{[%clk 01:03:00]} {[%emt 00:07:24]} 14. b4 {[%clk 01:14:20]} {[%emt 00:00:15]}
O-O {[%clk 00:54:09]} {[%emt 00:09:21]} 15. Bb2 {[%clk 01:05:52]} {[%emt
00:08:58]} Qh5 {[%clk 00:50:23]} {[%emt 00:04:17]} 16. Rfe1 {[%clk 01:03:50]}
{[%emt 00:02:30]} Rae8 {[%clk 00:45:32]} {[%emt 00:05:22]} 17. bxc5 {[%clk
00:58:28]} {[%emt 00:05:52]} Bxc5 {[%clk 00:45:50]} {[%emt 00:00:13]} 18. c4
{[%clk 00:58:24]} {[%emt 00:00:34]} e5 {[%clk 00:35:56]} {[%emt 00:10:24]} 19.
Be4 {[%clk 00:44:00]} {[%emt 00:14:54]} Qh6 {[%clk 00:32:42]} {[%emt 00:03:44]}
20. Qd3 {[%clk 00:36:01]} {[%emt 00:08:28]} Rd8 {[%clk 00:27:17]} {[%emt
00:05:55]} 21. Bd5 {[%clk 00:28:36]} {[%emt 00:07:55]} Be6 {[%clk 00:24:30]}
{[%emt 00:03:18]} 22. Nxe5 {[%clk 00:25:35]} {[%emt 00:03:30]} Ne7 {[%clk
00:23:00]} {[%emt 00:02:01]} 23. Qg3 {[%clk 00:11:04]} {[%emt 00:15:01]} Nxd5
{[%clk 00:15:33]} {[%emt 00:07:56]} 24. cxd5 {[%clk 00:11:31]} {[%emt
00:00:04]} Rxd5 {[%clk 00:15:48]} {[%emt 00:00:15]} 25. Nf3 {[%clk 00:10:27]}
{[%emt 00:01:33]} Rd3 {[%clk 00:14:52]} {[%emt 00:01:27]} 26. Re4 {[%clk
00:07:41]} {[%emt 00:03:15]} Qg6 {[%clk 00:10:33]} {[%emt 00:04:49]} 27. Qxg6
{[%clk 00:07:01]} {[%emt 00:01:09]} hxg6 {[%clk 00:11:02]} {[%emt 00:00:02]} 28.
Bc3 {[%clk 00:06:25]} {[%emt 00:01:06]} Bd5 {[%clk 00:08:04]} {[%emt 00:03:28]}
29. Rf4 {[%clk 00:06:33]} {[%emt 00:00:20]} Bxf3 {[%clk 00:08:00]} {[%emt
00:00:35]} 30. Rxf3 {[%clk 00:06:43]} {[%emt 00:00:21]} Rxf3 {[%clk 00:08:25]}
{[%emt 00:00:05]} 31. gxf3 {[%clk 00:07:09]} {[%emt 00:00:03]} b5 {[%clk
00:08:27]} {[%emt 00:00:29]} 32. Bb4 {[%clk 00:06:09]} {[%emt 00:01:29]} Rc8
{[%clk 00:08:44]} {[%emt 00:00:13]} 33. Kf1 {[%clk 00:01:56]} {[%emt 00:04:43]}
Bd4 {[%clk 00:08:16]} {[%emt 00:00:58]} 34. Re1 {[%clk 00:02:18]} {[%emt
00:00:07]} g5 {[%clk 00:08:29]} {[%emt 00:00:18]} 35. Re4 {[%clk 00:02:01]}
{[%emt 00:00:46]} Bb2 {[%clk 00:08:13]} {[%emt 00:00:47]} 36. Ke2 {[%clk
00:01:31]} {[%emt 00:00:59]} Kh7 {[%clk 00:06:28]} {[%emt 00:02:16]} 37. f4
{[%clk 00:00:47]} {[%emt 00:01:14]} gxf4 {[%clk 00:04:21]} {[%emt 00:02:37]} 38.
Rxf4 {[%clk 00:01:15]} {[%emt 00:00:02]} Kg6 {[%clk 00:04:40]} {[%emt
00:00:11]} 39. d4 {[%clk 00:00:46]} {[%emt 00:01:00]} f5 {[%clk 00:04:49]}
{[%emt 00:00:20]} 40. Bc5 {[%clk 00:00:41]} {[%emt 00:00:35]} Rh8 {[%clk
00:03:57]} {[%emt 00:01:22]} 41. d5 {[%clk 00:00:40]} {[%emt 00:00:31]} Rd8
{[%clk 00:04:05]} {[%emt 00:00:21]} 42. d6 {[%clk 00:00:44]} {[%emt 00:00:27]}
Be5 {[%clk 00:04:17]} {[%emt 00:00:17]} 43. Rb4 {[%clk 00:00:40]} {[%emt
00:00:34]} Bxd6 {[%clk 00:04:42]} {[%emt 00:00:06]} 44. Bxd6 {[%clk 00:00:58]}
{[%emt 00:00:11]} Rxd6 {[%clk 00:05:10]} {[%emt 00:00:02]} 45. Ke3 {[%clk
00:00:44]} {[%emt 00:00:44]} Re6+ {[%clk 00:03:57]} {[%emt 00:01:43]} 46. Kd3
{[%clk 00:00:46]} {[%emt 00:00:28]} Kg5 {[%clk 00:04:07]} {[%emt 00:00:21]} 47.
h4+ {[%clk 00:00:43]} {[%emt 00:00:33]} Kh5 {[%clk 00:04:13]} {[%emt 00:00:24]}
48. f3 {[%clk 00:00:57]} {[%emt 00:00:15]} Rf6 {[%clk 00:03:41]} {[%emt
00:01:02]} 49. Rf4 {[%clk 00:00:46]} {[%emt 00:00:41]} g6 {[%clk 00:04:00]}
{[%emt 00:00:11]} 50. Kc3 {[%clk 00:00:33]} {[%emt 00:00:43]} Rc6+ {[%clk
00:04:15]} {[%emt 00:00:16]} 51. Kb4 {[%clk 00:00:31]} {[%emt 00:00:31]} Rc4+
{[%clk 00:04:24]} {[%emt 00:00:21]} 52. Rxc4 {[%clk 00:01:00]} {[%emt
00:00:02]} bxc4 {[%clk 00:04:48]} {[%emt 00:00:06]} 53. Kxc4 {[%clk 00:01:10]}
{[%emt 00:00:20]} Kxh4 {[%clk 00:05:13]} {[%emt 00:00:04]} 54. Kb4 {[%clk
00:01:32]} {[%emt 00:00:08]} g5 {[%clk 00:05:31]} {[%emt 00:00:12]} 55. Ka5
{[%clk 00:01:51]} {[%emt 00:00:11]} g4 {[%clk 00:05:48]} {[%emt 00:00:13]} 56.
fxg4 {[%clk 00:02:18]} {[%emt 00:00:04]} fxg4 {[%emt 00:00:15]} 0-1

[Event "XXII Obert Internacional d'Escacs Sant Marti 2022"]
[Site "Barcelona, Spain"]
[Date "2022.07.16"]
[Round "4.3"]
[White "Valenzuela Gomez, Fernando"]
[Black "Aronyak, Ghosh"]
[Result "0-1"]
[TimeControl "1.30 fb 30"]
[WhiteElo "2373"]
[BlackElo "2486"]

1. e4 {[%clk 01:27:03]} {[%emt 00:03:55]} c6 {[%clk 01:29:28]} {[%emt
00:01:34]} 2. d4 {[%clk 01:26:56]} {[%emt 00:00:38]} d5 {[%clk 01:29:39]}
{[%emt 00:00:19]} 3. e5 {[%emt 00:00:03]} Bf5 {[%clk 01:29:31]} {[%emt
00:00:36]} 4. h4 {[%clk 01:27:43]} {[%emt 00:00:11]} h5 {[%clk 01:29:46]}
{[%emt 00:00:15]} 5. Bd3 {[%clk 01:27:32]} {[%emt 00:00:42]} Bxd3 {[%clk
01:29:48]} {[%emt 00:00:27]} 6. Qxd3 {[%clk 01:27:59]} {[%emt 00:00:03]} Qa5+
{[%clk 01:30:08]} {[%emt 00:00:10]} 7. Nd2 {[%clk 01:28:21]} {[%emt 00:00:09]}
e6 {[%clk 01:29:35]} {[%emt 00:01:02]} 8. Ngf3 {[%clk 01:28:41]} {[%emt
00:00:10]} Nh6 {[%clk 01:29:01]} {[%emt 00:01:04]} 9. O-O {[%clk 01:28:44]}
{[%emt 00:00:27]} Nf5 {[%clk 01:29:08]} {[%emt 00:00:23]} 10. Nb3 {[%clk
01:28:57]} {[%emt 00:00:17]} Qa6 {[%clk 01:29:01]} {[%emt 00:00:37]} 11. Qd1
{[%clk 01:29:21]} {[%emt 00:00:06]} Be7 {[%clk 01:27:57]} {[%emt 00:01:34]} 12.
g3 {[%clk 01:29:40]} {[%emt 00:00:12]} Nd7 {[%clk 01:25:58]} {[%emt 00:02:29]}
13. Bg5 {[%clk 01:29:33]} {[%emt 00:00:37]} Bxg5 {[%clk 01:24:53]} {[%emt
00:01:35]} 14. Nxg5 {[%clk 01:29:59]} {[%emt 00:00:04]} Rc8 {[%clk 01:22:50]}
{[%emt 00:02:33]} 15. Re1 {[%clk 01:27:14]} {[%emt 00:03:16]} c5 {[%clk
01:14:08]} {[%emt 00:09:12]} 16. c3 {[%clk 01:27:26]} {[%emt 00:00:18]} g6
{[%clk 01:10:33]} {[%emt 00:04:05]} 17. Qf3 {[%clk 01:27:07]} {[%emt 00:00:49]}
b6 {[%clk 01:04:58]} {[%emt 00:06:04]} 18. Kg2 {[%clk 01:05:57]} {[%emt
00:21:40]} Kf8 {[%clk 01:01:31]} {[%emt 00:03:57]} 19. Nc1 {[%clk 00:52:39]}
{[%emt 00:13:49]} Kg7 {[%clk 00:54:42]} {[%emt 00:07:18]} 20. Ne2 {[%clk
00:51:45]} {[%emt 00:01:24]} Nf8 {[%clk 00:48:04]} {[%emt 00:07:08]} 21. a4
{[%clk 00:36:41]} {[%emt 00:15:34]} Nh7 {[%clk 00:44:39]} {[%emt 00:03:55]} 22.
a5 {[%clk 00:33:05]} {[%emt 00:04:06]} Nxg5 {[%clk 00:40:14]} {[%emt 00:04:55]}
23. hxg5 {[%clk 00:33:30]} {[%emt 00:00:06]} Qb7 {[%clk 00:40:41]} {[%emt
00:00:02]} 24. axb6 {[%clk 00:29:57]} {[%emt 00:04:04]} axb6 {[%clk 00:40:31]}
{[%emt 00:00:40]} 25. Ra4 {[%clk 00:18:03]} {[%emt 00:12:24]} Ra8 {[%clk
00:39:58]} {[%emt 00:01:02]} 26. Rea1 {[%clk 00:18:24]} {[%emt 00:00:09]} Rxa4
{[%clk 00:36:28]} {[%emt 00:04:01]} 27. Rxa4 {[%clk 00:18:49]} {[%emt
00:00:04]} Ra8 {[%clk 00:34:36]} {[%emt 00:02:22]} 28. Rxa8 {[%clk 00:19:14]}
{[%emt 00:00:05]} Qxa8 {[%clk 00:35:03]} {[%emt 00:00:03]} 29. c4 {[%clk
00:18:41]} {[%emt 00:01:03]} Qd8 {[%clk 00:29:40]} {[%emt 00:05:51]} 30. cxd5
{[%clk 00:17:32]} {[%emt 00:01:41]} Qxg5 {[%clk 00:28:29]} {[%emt 00:01:41]} 31.
Qf4 {[%clk 00:17:19]} {[%emt 00:00:43]} Qxf4 {[%clk 00:26:11]} {[%emt
00:02:48]} 32. Nxf4 {[%clk 00:17:20]} {[%emt 00:00:29]} Nxd4 {[%clk 00:26:36]}
{[%emt 00:00:05]} 33. dxe6 {[%clk 00:14:07]} {[%emt 00:03:43]} fxe6 {[%clk
00:26:15]} {[%emt 00:00:51]} 34. f3 {[%clk 00:14:16]} {[%emt 00:00:21]} Kf7
{[%clk 00:25:09]} {[%emt 00:01:36]} 35. Nd3 {[%clk 00:10:39]} {[%emt 00:04:08]}
g5 {[%clk 00:24:57]} {[%emt 00:00:41]} 36. g4 {[%clk 00:10:17]} {[%emt
00:00:52]} h4 {[%clk 00:24:47]} {[%emt 00:00:40]} 37. f4 {[%clk 00:09:52]}
{[%emt 00:00:55]} c4 {[%clk 00:23:38]} {[%emt 00:01:39]} 38. Nf2 {[%clk
00:10:15]} {[%emt 00:00:06]} gxf4 {[%clk 00:24:04]} {[%emt 00:00:05]} 39. Kh3
{[%clk 00:10:38]} {[%emt 00:00:07]} Nf3 {[%clk 00:23:24]} {[%emt 00:01:09]} 40.
Ne4 {[%clk 00:11:03]} {[%emt 00:00:06]} Nxe5 {[%clk 00:22:18]} {[%emt
00:01:36]} 41. Kxh4 {[%clk 00:11:30]} {[%emt 00:00:03]} Kg6 {[%clk 00:21:33]}
{[%emt 00:01:15]} 42. Nd6 {[%clk 00:11:43]} {[%emt 00:00:17]} Nf3+ {[%clk
00:21:07]} {[%emt 00:00:56]} 43. Kh3 {[%clk 00:12:11]} {[%emt 00:00:01]} Nd2
{[%clk 00:21:36]} {[%emt 00:00:02]} 44. Kg2 {[%clk 00:12:33]} {[%emt 00:00:08]}
e5 {[%clk 00:21:35]} {[%emt 00:00:31]} 0-1

[Event "XXII Obert Internacional d'Escacs Sant Marti 2022"]
[Site "Barcelona, Spain"]
[Date "2022.07.16"]
[Round "4.4"]
[White "Berdayes Ason, Dylan Isidro"]
[Black "Diermair, Andreas"]
[Result "0-1"]
[TimeControl "1.30 fb 30"]
[WhiteElo "2480"]
[BlackElo "2452"]

1. d4 {[%clk 01:30:57]} {[%emt 00:00:03]} e6 {[%clk 01:30:40]} {[%emt
00:00:20]} 2. c4 {[%clk 01:31:24]} {[%emt 00:00:03]} Nf6 {[%clk 01:30:04]}
{[%emt 00:01:05]} 3. Nc3 {[%clk 01:31:52]} {[%emt 00:00:02]} Bb4 {[%clk
01:30:27]} {[%emt 00:00:07]} 4. a3 {[%clk 01:32:19]} {[%emt 00:00:03]} Bxc3+
{[%clk 01:30:53]} {[%emt 00:00:04]} 5. bxc3 {[%clk 01:32:46]} {[%emt 00:00:03]}
c5 {[%clk 01:29:44]} {[%emt 00:01:39]} 6. f3 {[%clk 01:33:13]} {[%emt
00:00:03]} Nc6 {[%clk 01:29:34]} {[%emt 00:00:40]} 7. e4 {[%clk 01:33:40]}
{[%emt 00:00:03]} d6 {[%clk 01:29:41]} {[%emt 00:00:23]} 8. Ne2 {[%clk
01:34:08]} {[%emt 00:00:03]} b6 {[%clk 01:27:46]} {[%emt 00:02:25]} 9. Bg5
{[%clk 01:34:34]} {[%emt 00:00:03]} h6 {[%clk 01:26:30]} {[%emt 00:01:46]} 10.
Bh4 {[%clk 01:35:02]} {[%emt 00:00:03]} Na5 {[%clk 01:16:01]} {[%emt 00:10:59]}
11. Nc1 {[%clk 01:34:38]} {[%emt 00:00:54]} Ba6 {[%clk 01:07:51]} {[%emt
00:08:39]} 12. Nb3 {[%clk 01:35:06]} {[%emt 00:00:02]} Bxc4 {[%clk 01:05:12]}
{[%emt 00:03:10]} 13. Nxa5 {[%clk 01:34:57]} {[%emt 00:00:39]} Bxf1 {[%clk
01:05:37]} {[%emt 00:00:05]} 14. Nb7 {[%clk 01:33:09]} {[%emt 00:02:18]} Qd7
{[%clk 01:03:59]} {[%emt 00:02:14]} 15. Nxd6+ {[%clk 01:33:35]} Qxd6 {[%clk
01:04:25]} {[%emt 00:00:02]} 16. Kxf1 {[%clk 01:33:41]} {[%emt 00:00:24]} Nd7
{[%clk 00:59:32]} {[%emt 00:05:23]} 17. Bf2 {[%clk 01:33:44]} {[%emt 00:00:27]}
O-O {[%clk 00:58:19]} {[%emt 00:01:43]} 18. g3 {[%clk 01:31:04]} {[%emt
00:03:09]} f5 {[%clk 00:56:53]} {[%emt 00:01:56]} 19. Kg2 {[%clk 01:28:35]}
{[%emt 00:03:00]} fxe4 {[%clk 00:56:24]} {[%emt 00:00:59]} 20. fxe4 {[%clk
01:29:02]} {[%emt 00:00:03]} cxd4 {[%clk 00:55:39]} {[%emt 00:01:15]} 21. cxd4
{[%clk 01:28:57]} {[%emt 00:00:35]} Rac8 {[%clk 00:55:01]} {[%emt 00:01:08]} 22.
Qd3 {[%clk 01:21:14]} {[%emt 00:08:13]} Ne5 {[%clk 00:47:14]} {[%emt 00:08:17]}
23. Qe2 {[%clk 01:19:37]} {[%emt 00:02:07]} Ng4 {[%clk 00:40:26]} {[%emt
00:07:18]} 24. Bg1 {[%clk 01:14:29]} {[%emt 00:05:38]} h5 {[%clk 00:39:29]}
{[%emt 00:01:27]} 25. Qd3 {[%clk 01:05:04]} {[%emt 00:09:56]} Qc7 {[%clk
00:35:25]} {[%emt 00:04:34]} 26. Ra2 {[%clk 01:04:37]} {[%emt 00:00:57]} Qf7
{[%clk 00:31:47]} {[%emt 00:04:07]} 27. Qe2 {[%clk 00:53:23]} {[%emt 00:11:44]}
Rc3 {[%clk 00:29:44]} {[%emt 00:02:32]} 28. Rd2 {[%clk 00:49:31]} {[%emt
00:04:22]} h4 {[%clk 00:27:50]} {[%emt 00:02:24]} 29. Kh3 {[%clk 00:32:02]}
{[%emt 00:17:59]} Rf3 {[%clk 00:17:17]} {[%emt 00:11:03]} 30. Kxh4 {[%clk
00:16:59]} {[%emt 00:15:33]} Qg6 {[%clk 00:17:32]} {[%emt 00:00:16]} 31. Kh3
{[%clk 00:14:13]} {[%emt 00:03:15]} Rxa3 {[%clk 00:17:46]} {[%emt 00:00:17]} 32.
d5 {[%clk 00:09:08]} {[%emt 00:05:35]} Ne5 {[%clk 00:15:46]} {[%emt 00:02:30]}
33. d6 {[%clk 00:03:01]} {[%emt 00:06:37]} Nf3 {[%clk 00:15:19]} {[%emt
00:00:56]} 34. Rc2 {[%clk 00:03:28]} {[%emt 00:00:03]} Ra1 {[%clk 00:12:13]}
{[%emt 00:03:37]} 35. d7 {[%clk 00:01:29]} {[%emt 00:02:29]} Qh5+ {[%clk
00:12:23]} {[%emt 00:00:20]} 0-1

[Event "XXII Obert Internacional d'Escacs Sant Marti 2022"]
[Site "Barcelona, Spain"]
[Date "2022.07.16"]
[Round "4.5"]
[White "Arpan, Das (Jr)"]
[Black "Roshka, Yevgeniy"]
[Result "0-1"]
[TimeControl "1.30 fb 30"]
[WhiteElo "2178"]
[BlackElo "2497"]

1. e4 {[%clk 01:30:56]} {[%emt 00:00:03]} g6 {[%clk 01:30:10]} {[%emt
00:00:46]} 2. d4 {[%clk 01:31:24]} {[%emt 00:00:07]} Bg7 {[%clk 01:30:36]}
{[%emt 00:00:04]} 3. Nc3 {[%clk 01:31:50]} {[%emt 00:00:04]} d6 {[%clk
01:30:32]} {[%emt 00:00:34]} 4. Be3 {[%clk 01:32:13]} {[%emt 00:00:05]} a6
{[%clk 01:30:59]} {[%emt 00:00:04]} 5. h4 {[%clk 01:32:25]} {[%emt 00:00:17]}
h6 {[%clk 01:31:15]} {[%emt 00:00:15]} 6. a4 {[%clk 01:31:41]} {[%emt
00:01:14]} Nc6 {[%clk 01:29:15]} {[%emt 00:02:30]} 7. f3 {[%clk 01:27:52]}
{[%emt 00:04:19]} e5 {[%clk 01:27:53]} {[%emt 00:01:52]} 8. Nge2 {[%clk
01:27:19]} {[%emt 00:01:02]} f5 {[%clk 01:21:34]} {[%emt 00:06:49]} 9. exf5
{[%clk 01:18:44]} {[%emt 00:09:06]} gxf5 {[%clk 01:21:05]} {[%emt 00:00:59]} 10.
dxe5 {[%clk 01:01:55]} {[%emt 00:17:19]} dxe5 {[%clk 01:20:01]} {[%emt
00:01:35]} 11. Qxd8+ {[%clk 00:58:31]} {[%emt 00:03:54]} Nxd8 {[%clk 01:18:37]}
{[%emt 00:01:53]} 12. Nd5 {[%clk 00:54:23]} {[%emt 00:04:38]} Ne6 {[%clk
01:19:06]} {[%emt 00:00:01]} 13. Nec3 {[%clk 00:53:57]} {[%emt 00:00:56]} Ne7
{[%clk 01:14:29]} {[%emt 00:05:07]} 14. Nxe7 {[%clk 00:46:32]} {[%emt
00:07:55]} Kxe7 {[%clk 01:14:57]} {[%emt 00:00:02]} 15. Nd5+ {[%clk 00:46:48]}
{[%emt 00:00:14]} Kd6 {[%clk 01:09:24]} {[%emt 00:06:03]} 16. O-O-O {[%clk
00:46:08]} {[%emt 00:01:10]} Nd4 {[%clk 01:09:52]} {[%emt 00:00:02]} 17. Nf4
{[%clk 00:43:59]} {[%emt 00:02:38]} Kc6 {[%clk 01:08:56]} {[%emt 00:01:26]} 18.
Nh5 {[%clk 00:42:23]} {[%emt 00:02:06]} Bf8 {[%clk 01:09:24]} {[%emt 00:00:03]}
19. Bxd4 {[%clk 00:33:23]} {[%emt 00:09:31]} exd4 {[%clk 01:09:52]} {[%emt
00:00:02]} 20. Bc4 {[%clk 00:29:59]} {[%emt 00:03:53]} Kc5 {[%clk 01:08:32]}
{[%emt 00:01:50]} 21. Ba2 {[%clk 00:26:35]} {[%emt 00:03:55]} Bd6 {[%clk
01:04:19]} {[%emt 00:04:43]} 22. b4+ {[%clk 00:26:44]} {[%emt 00:00:21]} Kxb4
{[%clk 01:04:26]} {[%emt 00:00:23]} 23. Rxd4+ {[%clk 00:27:10]} {[%emt
00:00:04]} Ka5 {[%clk 01:04:44]} {[%emt 00:00:12]} 24. Nf4 {[%clk 00:21:29]}
{[%emt 00:06:11]} Bd7 {[%clk 01:04:22]} {[%emt 00:00:52]} 25. Bb3 {[%clk
00:21:43]} {[%emt 00:00:16]} Bc6 {[%clk 01:02:56]} {[%emt 00:01:56]} 26. Rhd1
{[%clk 00:19:12]} {[%emt 00:03:01]} Rhe8 {[%clk 00:59:13]} {[%emt 00:04:13]} 27.
Kb1 {[%clk 00:17:40]} {[%emt 00:02:02]} Re3 {[%clk 00:57:42]} {[%emt 00:02:01]}
28. Nd5 {[%clk 00:16:08]} {[%emt 00:02:02]} Re2 {[%clk 00:57:24]} {[%emt
00:00:47]} 29. g4 {[%clk 00:16:29]} {[%emt 00:00:10]} fxg4 {[%clk 00:57:32]}
{[%emt 00:00:22]} 30. fxg4 {[%clk 00:16:46]} {[%emt 00:00:13]} Rf8 {[%clk
00:56:03]} {[%emt 00:01:58]} 31. g5 {[%clk 00:13:45]} {[%emt 00:03:32]} hxg5
{[%clk 00:56:23]} {[%emt 00:00:10]} 32. hxg5 {[%clk 00:14:13]} {[%emt
00:00:02]} Rf5 {[%clk 00:51:48]} {[%emt 00:05:05]} 33. Rg4 {[%clk 00:11:20]}
{[%emt 00:03:23]} Bf8 {[%clk 00:51:53]} {[%emt 00:00:25]} 34. Nxc7 {[%clk
00:10:15]} {[%emt 00:01:35]} Bf3 {[%clk 00:51:42]} {[%emt 00:00:41]} 35. Rgg1
{[%clk 00:08:40]} {[%emt 00:02:05]} Re7 {[%clk 00:50:41]} {[%emt 00:01:32]} 36.
Nd5 {[%clk 00:08:06]} {[%emt 00:01:03]} Ree5 {[%clk 00:51:09]} {[%emt
00:00:02]} 37. g6 {[%clk 00:04:09]} {[%emt 00:04:27]} Bg7 {[%clk 00:42:51]}
{[%emt 00:08:49]} 38. Nc7 {[%clk 00:03:05]} {[%emt 00:01:34]} Bxd1 {[%clk
00:43:14]} {[%emt 00:00:06]} 39. Rxd1 {[%clk 00:03:33]} {[%emt 00:00:02]} Rf3
{[%clk 00:43:00]} {[%emt 00:00:44]} 40. Ka2 {[%clk 00:03:02]} {[%emt 00:01:00]}
Rg3 {[%clk 00:40:06]} {[%emt 00:03:25]} 41. Rd7 {[%clk 00:02:18]} {[%emt
00:01:14]} Rxg6 {[%clk 00:40:14]} {[%emt 00:00:21]} 42. Ne8 {[%clk 00:01:44]}
{[%emt 00:01:05]} Bf8 {[%clk 00:39:19]} {[%emt 00:01:24]} 43. Nc7 {[%clk
00:00:55]} {[%emt 00:01:19]} Bc5 {[%clk 00:37:05]} {[%emt 00:02:44]} 44. Nd5
{[%clk 00:00:32]} {[%emt 00:00:54]} Rd6 {[%clk 00:36:40]} {[%emt 00:00:55]} 45.
Rxd6 {[%clk 00:00:37]} {[%emt 00:00:26]} Bxd6 {[%clk 00:37:08]} {[%emt
00:00:01]} 46. Kb2 {[%clk 00:00:53]} {[%emt 00:00:14]} Re4 {[%clk 00:36:26]}
{[%emt 00:01:12]} 47. Kc3 {[%clk 00:01:01]} {[%emt 00:00:21]} Be5+ {[%clk
00:36:54]} {[%emt 00:00:02]} 48. Kd3 {[%clk 00:00:51]} {[%emt 00:00:41]} Rd4+
{[%clk 00:37:23]} {[%emt 00:00:02]} 49. Ke2 {[%clk 00:00:34]} {[%emt 00:00:43]}
b5 {[%clk 00:36:53]} {[%emt 00:01:02]} 50. Ne7 {[%clk 00:00:33]} {[%emt
00:00:32]} Rd6 {[%clk 00:35:55]} {[%emt 00:01:27]} 51. axb5 {[%clk 00:00:39]}
{[%emt 00:00:25]} Kxb5 {[%clk 00:36:24]} {[%emt 00:00:02]} 52. Nf5 {[%clk
00:00:33]} {[%emt 00:00:36]} Rd8 {[%clk 00:36:28]} {[%emt 00:00:23]} 53. Ke3
{[%clk 00:00:43]} {[%emt 00:00:21]} a5 {[%clk 00:36:44]} {[%emt 00:00:14]} 54.
Ke4 {[%clk 00:00:57]} {[%emt 00:00:16]} Bc3 {[%clk 00:36:58]} {[%emt 00:00:15]}
55. Ne3 {[%clk 00:00:52]} {[%emt 00:00:35]} a4 {[%clk 00:37:19]} {[%emt
00:00:10]} 56. Bd5 {[%clk 00:00:33]} {[%emt 00:00:49]} Kc5 {[%clk 00:37:20]}
{[%emt 00:00:29]} 57. Bf7 {[%clk 00:00:34]} {[%emt 00:00:28]} Rd4+ {[%clk
00:37:32]} {[%emt 00:00:18]} 58. Kf3 {[%clk 00:00:52]} {[%emt 00:00:06]} Bd2
{[%clk 00:37:21]} {[%emt 00:00:48]} 59. Ke2 {[%clk 00:00:51]} {[%emt 00:00:31]}
Bxe3 {[%clk 00:37:37]} {[%emt 00:00:14]} 60. Kxe3 {[%clk 00:01:17]} {[%emt
00:00:04]} a3 {[%clk 00:38:00]} {[%emt 00:00:07]} 61. Be6 {[%clk 00:00:56]}
{[%emt 00:00:51]} Rc4 {[%clk 00:38:19]} {[%emt 00:00:11]} 62. Kd3 {[%clk
00:01:15]} {[%emt 00:00:11]} a2 {[%clk 00:38:44]} {[%emt 00:00:05]} 63. Bxc4
{[%clk 00:01:41]} {[%emt 00:00:04]} a1=Q {[%clk 00:39:08]} {[%emt 00:00:04]}
0-1